[Event "Polofinale MCR juniorek 2023"]
[Site "Czech Republic"]
[Date "2023.11.12"]
[Round "2.1"]
[White "Nespora, Tatana"]
[Black "Stastna, Martina"]
[Result "0-1"]
[TimeControl "90 min per 40 moves + 15 min + 30 sec / move from move 1"]
[WhiteFideId "392286"]
[BlackFideId "385123"]
[WhiteElo "1690"]
[BlackElo "1940"]

1. e4 {[%clk 01:30:48]} {[%emt 00:00:10]} e5 {[%clk 01:30:45]} {[%emt
00:00:17]} 2. Nf3 {[%clk 01:31:01]} {[%emt 00:00:17]} Nc6 {[%clk 01:30:33]}
{[%emt 00:00:42]} 3. Bc4 {[%clk 01:31:06]} {[%emt 00:00:25]} Bc5 {[%clk
01:30:01]} {[%emt 00:01:03]} 4. b4 {[%clk 01:31:09]} {[%emt 00:00:27]} Bxb4
{[%clk 01:29:35]} {[%emt 00:00:56]} 5. c3 {[%clk 01:31:14]} {[%emt 00:00:25]}
Bc5 {[%clk 01:28:26]} {[%emt 00:01:38]} 6. O-O {[%clk 01:29:49]} {[%emt
00:01:55]} d6 {[%clk 01:23:31]} {[%emt 00:05:26]} 7. d4 {[%clk 01:29:33]}
{[%emt 00:00:46]} exd4 {[%clk 01:22:26]} {[%emt 00:01:34]} 8. cxd4 {[%clk
01:29:13]} {[%emt 00:00:50]} Bb6 {[%clk 01:22:32]} {[%emt 00:00:25]} 9. Nc3
{[%clk 01:25:14]} {[%emt 00:04:29]} Na5 {[%clk 01:17:54]} {[%emt 00:05:08]} 10.
e5 {[%clk 01:17:54]} {[%emt 00:07:50]} Nxc4 {[%clk 01:11:57]} {[%emt 00:06:26]}
11. Qa4+ {[%clk 01:18:11]} {[%emt 00:00:13]} c6 {[%clk 01:10:10]} {[%emt
00:02:17]} 12. Qxc4 {[%clk 01:18:23]} {[%emt 00:00:18]} d5 {[%clk 01:09:03]}
{[%emt 00:01:37]} 13. Qd3 {[%clk 01:12:49]} {[%emt 00:06:03]} Ne7 {[%clk
01:05:03]} {[%emt 00:04:30]} 14. Nh4 {[%clk 01:06:04]} {[%emt 00:07:15]} Ng6
{[%clk 01:02:50]} {[%emt 00:02:43]} 15. Nf3 {[%clk 00:56:36]} {[%emt 00:09:58]}
Bg4 {[%clk 00:57:14]} {[%emt 00:06:06]} 16. Ng5 {[%clk 00:52:52]} {[%emt
00:04:13]} h6 {[%clk 00:50:10]} {[%emt 00:07:34]} 17. h3 {[%clk 00:50:19]}
{[%emt 00:03:03]} hxg5 {[%clk 00:46:46]} {[%emt 00:03:55]} 18. hxg4 {[%clk
00:50:31]} {[%emt 00:00:18]} Nf4 {[%clk 00:46:54]} {[%emt 00:00:22]} 19. Bxf4
{[%clk 00:37:40]} {[%emt 00:13:22]} gxf4 {[%clk 00:47:16]} {[%emt 00:00:08]} 20.
e6 {[%clk 00:37:35]} {[%emt 00:00:36]} Qf6 {[%clk 00:41:46]} {[%emt 00:05:59]}
21. exf7+ {[%clk 00:33:00]} {[%emt 00:05:05]} Kxf7 {[%clk 00:41:42]} {[%emt
00:00:34]} 22. Ne2 {[%clk 00:33:10]} {[%emt 00:00:20]} Rae8 {[%clk 00:40:49]}
{[%emt 00:01:23]} 23. Rfe1 {[%clk 00:31:51]} {[%emt 00:01:49]} Re4 {[%clk
00:35:50]} {[%emt 00:05:29]} 24. a4 {[%clk 00:29:25]} {[%emt 00:02:57]} Rhe8
{[%clk 00:33:44]} {[%emt 00:02:35]} 25. Qd2 {[%clk 00:28:01]} {[%emt 00:01:54]}
Bxd4 {[%clk 00:27:29]} {[%emt 00:06:45]} 26. Nxd4 {[%clk 00:27:05]} {[%emt
00:01:26]} Qxd4 {[%clk 00:26:20]} {[%emt 00:01:40]} 27. Qa5 {[%clk 00:26:48]}
{[%emt 00:00:47]} b6 {[%clk 00:25:06]} {[%emt 00:01:44]} 28. Qxa7+ {[%clk
00:22:24]} {[%emt 00:04:54]} R8e7 {[%clk 00:25:26]} {[%emt 00:00:09]} 29. Qb8
{[%clk 00:22:37]} {[%emt 00:00:16]} Rxe1+ {[%clk 00:25:32]} {[%emt 00:00:25]}
30. Rxe1 {[%clk 00:23:05]} {[%emt 00:00:01]} Rxe1+ {[%clk 00:25:54]} {[%emt
00:00:08]} 31. Kh2 {[%clk 00:23:31]} {[%emt 00:00:03]} Qf6 {[%clk 00:25:07]}
{[%emt 00:01:17]} 0-1

[Event "Polofinale MCR juniorek 2023"]
[Site "Czech Republic"]
[Date "2023.11.12"]
[Round "2.2"]
[White "Nagyova, Daniela"]
[Black "Sulcova, Tereza Radmila"]
[Result "0-1"]
[TimeControl "90 min per 40 moves + 15 min + 30 sec / move from move 1"]
[WhiteFideId "390070"]
[BlackFideId "395196"]
[WhiteElo "1872"]
[BlackElo "1671"]

1. e4 {[%clk 01:30:55]} {[%emt 00:00:03]} g6 {[%clk 01:30:51]} {[%emt
00:00:09]} 2. d4 {[%clk 01:30:29]} {[%emt 00:00:56]} Nf6 {[%clk 01:31:09]}
{[%emt 00:00:12]} 3. Nc3 {[%clk 01:28:58]} {[%emt 00:02:01]} d5 {[%clk
01:31:29]} {[%emt 00:00:11]} 4. e5 {[%clk 01:21:59]} {[%emt 00:07:30]} Nh5
{[%clk 01:31:45]} {[%emt 00:00:13]} 5. Be3 {[%clk 01:14:11]} {[%emt 00:08:17]}
c6 {[%clk 01:28:58]} {[%emt 00:03:17]} 6. Qd2 {[%clk 01:09:16]} {[%emt
00:05:25]} Ng7 {[%clk 01:27:40]} {[%emt 00:01:47]} 7. Nf3 {[%clk 01:03:01]}
{[%emt 00:06:46]} Bg4 {[%clk 01:23:01]} {[%emt 00:05:09]} 8. Be2 {[%clk
01:00:35]} {[%emt 00:02:57]} h5 {[%clk 01:19:23]} {[%emt 00:04:08]} 9. O-O-O
{[%clk 00:55:34]} {[%emt 00:05:31]} Nd7 {[%clk 01:10:46]} {[%emt 00:09:07]} 10.
Ng5 {[%clk 00:48:25]} {[%emt 00:07:39]} Bxe2 {[%clk 01:03:45]} {[%emt
00:07:32]} 11. e6 {[%clk 00:42:59]} {[%emt 00:05:56]} Nxe6 {[%clk 01:02:07]}
{[%emt 00:02:08]} 12. Nxe6 {[%clk 00:41:29]} {[%emt 00:01:59]} fxe6 {[%clk
01:02:28]} {[%emt 00:00:09]} 13. Nxe2 {[%clk 00:38:38]} {[%emt 00:03:21]} e5
{[%clk 00:57:39]} {[%emt 00:05:19]} 14. dxe5 {[%clk 00:34:31]} {[%emt
00:04:38]} Nxe5 {[%clk 00:57:48]} {[%emt 00:00:21]} 15. Bd4 {[%clk 00:31:59]}
{[%emt 00:03:01]} Bh6 {[%clk 00:55:55]} {[%emt 00:02:23]} 16. f4 {[%clk
00:30:45]} {[%emt 00:01:44]} Nc4 {[%clk 00:55:45]} {[%emt 00:00:40]} 17. Qb4
{[%clk 00:25:26]} {[%emt 00:05:50]} Rg8 {[%clk 00:51:22]} {[%emt 00:04:54]} 18.
Qxb7 {[%clk 00:23:36]} {[%emt 00:02:20]} Qc8 {[%clk 00:50:54]} {[%emt
00:00:58]} 19. Qxc8+ {[%clk 00:21:13]} {[%emt 00:02:53]} Rxc8 {[%clk 00:51:15]}
{[%emt 00:00:08]} 20. b3 {[%clk 00:19:08]} {[%emt 00:02:35]} Nd6 {[%clk
00:48:47]} {[%emt 00:02:58]} 21. Be5 {[%clk 00:17:21]} {[%emt 00:02:18]} Nf7
{[%clk 00:46:39]} {[%emt 00:02:39]} 22. Bb2 {[%clk 00:13:56]} {[%emt 00:03:54]}
g5 {[%clk 00:45:28]} {[%emt 00:01:40]} 23. f5 {[%clk 00:11:24]} {[%emt
00:03:02]} g4+ {[%clk 00:44:49]} {[%emt 00:01:09]} 24. Kb1 {[%clk 00:11:46]}
{[%emt 00:00:10]} Nd6 {[%clk 00:43:43]} {[%emt 00:01:36]} 25. Nd4 {[%clk
00:07:47]} {[%emt 00:04:29]} c5 {[%clk 00:41:39]} {[%emt 00:02:33]} 26. Ne6
{[%clk 00:07:04]} {[%emt 00:01:13]} d4 {[%clk 00:41:30]} {[%emt 00:00:39]} 27.
Ba3 {[%clk 00:06:12]} {[%emt 00:01:22]} Ne4 {[%clk 00:39:09]} {[%emt 00:02:51]}
28. Rde1 {[%clk 00:05:42]} {[%emt 00:01:00]} Be3 {[%clk 00:38:11]} {[%emt
00:01:28]} 29. Kb2 {[%clk 00:04:08]} {[%emt 00:02:04]} c4 {[%clk 00:29:28]}
{[%emt 00:09:13]} 30. Re2 {[%clk 00:03:17]} {[%emt 00:01:21]} cxb3 {[%clk
00:25:22]} {[%emt 00:04:37]} 31. axb3 {[%clk 00:03:06]} {[%emt 00:00:41]} Nc3
{[%clk 00:23:10]} {[%emt 00:02:41]} 32. Ree1 {[%clk 00:03:34]} {[%emt
00:00:02]} Ne4 {[%clk 00:21:08]} {[%emt 00:02:32]} 33. Re2 {[%clk 00:03:00]}
{[%emt 00:01:05]} Kf7 {[%clk 00:17:10]} {[%emt 00:04:28]} 34. Rf1 {[%clk
00:02:57]} {[%emt 00:00:33]} Rc6 {[%clk 00:16:30]} {[%emt 00:01:09]} 35. Bb4
{[%clk 00:01:26]} {[%emt 00:02:03]} Rb8 {[%clk 00:14:06]} {[%emt 00:02:52]} 36.
Be1 {[%clk 00:01:42]} {[%emt 00:00:15]} Nd6 {[%clk 00:13:21]} {[%emt 00:01:15]}
37. Nf4 {[%clk 00:01:22]} {[%emt 00:00:50]} a5 {[%clk 00:11:46]} {[%emt
00:02:05]} 38. Nxh5 {[%clk 00:01:02]} {[%emt 00:00:51]} a4 {[%clk 00:10:34]}
{[%emt 00:01:42]} 39. Nf4 {[%clk 00:01:05]} {[%emt 00:00:26]} axb3 {[%clk
00:10:41]} {[%emt 00:00:24]} 40. cxb3 {[%clk 00:01:27]} {[%emt 00:00:08]} Nc4+
{[%clk 00:10:54]} {[%emt 00:00:17]} 41. Ka1 {[%clk 00:13:41]} {[%emt 00:03:46]}
Rxb3 {[%clk 00:24:18]} {[%emt 00:02:37]} 42. Ra2 {[%clk 00:10:39]} {[%emt
00:03:32]} Na3 {[%clk 00:23:16]} {[%emt 00:01:32]} 43. Rb2 {[%clk 00:08:53]}
{[%emt 00:02:16]} Rc1+ {[%clk 00:21:43]} {[%emt 00:02:02]} 44. Ka2 {[%clk
00:09:11]} {[%emt 00:00:13]} Rxb2+ {[%clk 00:21:46]} {[%emt 00:00:27]} 45. Kxb2
{[%clk 00:09:07]} {[%emt 00:00:34]} Nc4+ {[%clk 00:22:04]} {[%emt 00:00:13]} 46.
Kb3 {[%clk 00:08:20]} {[%emt 00:01:16]} Nd2+ {[%clk 00:22:17]} {[%emt
00:00:17]} 47. Bxd2 {[%clk 00:08:45]} {[%emt 00:00:05]} Rxf1 {[%clk 00:22:35]}
{[%emt 00:00:12]} 48. Bxe3 {[%clk 00:08:56]} {[%emt 00:00:19]} dxe3 {[%clk
00:22:58]} {[%emt 00:00:08]} 49. Ne2 {[%clk 00:09:01]} {[%emt 00:00:24]} Rf2
{[%clk 00:23:02]} {[%emt 00:00:26]} 0-1

[Event "Polofinale MCR juniorek 2023"]
[Site "Czech Republic"]
[Date "2023.11.12"]
[Round "2.3"]
[White "Sikorova, Jana"]
[Black "Buchtova, Viktorie"]
[Result "0-1"]
[TimeControl "90 min per 40 moves + 15 min + 30 sec / move from move 1"]
[WhiteFideId "392472"]
[BlackFideId "23714786"]
[WhiteElo "1662"]
[BlackElo "1801"]

1. d4 {[%clk 01:30:56]} {[%emt 00:00:03]} Nf6 {[%clk 01:30:58]} {[%emt
00:00:03]} 2. c4 {[%clk 01:31:05]} {[%emt 00:00:20]} e6 {[%clk 01:31:25]}
{[%emt 00:00:03]} 3. Nf3 {[%clk 01:31:12]} {[%emt 00:00:22]} Bb4+ {[%clk
01:31:51]} {[%emt 00:00:05]} 4. Bd2 {[%clk 01:30:21]} {[%emt 00:01:21]} c5
{[%clk 01:32:15]} {[%emt 00:00:07]} 5. Bxb4 {[%clk 01:28:54]} {[%emt 00:01:57]}
cxb4 {[%clk 01:32:43]} {[%emt 00:00:02]} 6. Nbd2 {[%clk 01:27:25]} {[%emt
00:01:59]} O-O {[%clk 01:32:48]} {[%emt 00:00:25]} 7. e3 {[%clk 01:26:27]}
{[%emt 00:01:28]} d6 {[%clk 01:33:12]} {[%emt 00:00:07]} 8. Bd3 {[%clk
01:25:17]} {[%emt 00:01:40]} Re8 {[%clk 01:33:00]} {[%emt 00:00:43]} 9. Qc2
{[%clk 01:23:23]} {[%emt 00:02:24]} e5 {[%clk 01:21:58]} {[%emt 00:11:32]} 10.
Ne4 {[%clk 01:19:52]} {[%emt 00:04:00]} exd4 {[%clk 01:13:55]} {[%emt
00:08:33]} 11. Nxd4 {[%clk 01:15:40]} {[%emt 00:04:42]} Nxe4 {[%clk 01:13:42]}
{[%emt 00:00:43]} 12. Bxe4 {[%clk 01:15:21]} {[%emt 00:00:49]} Qh4 {[%clk
01:13:33]} {[%emt 00:00:39]} 13. Bxh7+ {[%clk 01:02:50]} {[%emt 00:13:01]} Qxh7
{[%clk 01:13:57]} {[%emt 00:00:06]} 14. Qxh7+ {[%clk 01:03:14]} {[%emt
00:00:06]} Kxh7 {[%clk 01:14:22]} {[%emt 00:00:04]} 15. Nb5 {[%clk 01:02:22]}
{[%emt 00:01:22]} Re7 {[%clk 01:10:18]} {[%emt 00:04:34]} 16. Rd1 {[%clk
00:58:16]} {[%emt 00:04:36]} Na6 {[%clk 01:05:37]} {[%emt 00:05:12]} 17. Nxd6
{[%clk 00:54:40]} {[%emt 00:04:06]} Be6 {[%clk 01:03:03]} {[%emt 00:03:04]} 18.
Ke2 {[%clk 00:46:32]} {[%emt 00:08:37]} Nc5 {[%clk 00:57:06]} {[%emt 00:06:28]}
19. b3 {[%clk 00:43:42]} {[%emt 00:03:20]} a5 {[%clk 00:44:12]} {[%emt
00:13:25]} 20. Nb5 {[%clk 00:34:57]} {[%emt 00:09:13]} a4 {[%clk 00:39:31]}
{[%emt 00:05:13]} 21. Nd4 {[%clk 00:31:32]} {[%emt 00:03:54]} axb3 {[%clk
00:38:28]} {[%emt 00:01:33]} 22. axb3 {[%clk 00:30:07]} {[%emt 00:01:55]} Nxb3
{[%clk 00:37:39]} {[%emt 00:01:19]} 23. Nxe6 {[%clk 00:28:30]} {[%emt
00:02:06]} Rxe6 {[%clk 00:37:38]} {[%emt 00:00:31]} 24. Rd5 {[%clk 00:21:16]}
{[%emt 00:07:44]} Ra2+ {[%clk 00:37:04]} {[%emt 00:01:05]} 25. Kf3 {[%clk
00:20:50]} {[%emt 00:00:55]} Nd2+ {[%clk 00:36:40]} {[%emt 00:00:55]} 26. Kg3
{[%clk 00:20:30]} {[%emt 00:00:50]} Ne4+ {[%clk 00:36:37]} {[%emt 00:00:33]}
0-1

[Event "Polofinale MCR juniorek 2023"]
[Site "Czech Republic"]
[Date "2023.11.12"]
[Round "2.4"]
[White "Dudova, Pavlina"]
[Black "Kavanova, Anezka"]
[Result "1-0"]
[TimeControl "90 min per 40 moves + 15 min + 30 sec / move from move 1"]
[WhiteFideId "394629"]
[BlackFideId "23745517"]
[WhiteElo "1763"]
[BlackElo "1434"]

1. e4 {[%clk 01:30:56]} {[%emt 00:00:03]} Nf6 {[%clk 01:30:51]} {[%emt
00:00:10]} 2. e5 {[%clk 01:31:14]} {[%emt 00:00:12]} Nd5 {[%clk 01:31:17]}
{[%emt 00:00:05]} 3. c4 {[%clk 01:31:26]} {[%emt 00:00:18]} Nb6 {[%clk
01:31:42]} {[%emt 00:00:05]} 4. d4 {[%clk 01:31:18]} {[%emt 00:00:38]} d6
{[%clk 01:32:00]} {[%emt 00:00:12]} 5. exd6 {[%clk 01:31:22]} {[%emt 00:00:27]}
cxd6 {[%clk 01:32:20]} {[%emt 00:00:10]} 6. Nc3 {[%clk 01:31:01]} {[%emt
00:00:50]} g6 {[%clk 01:32:17]} {[%emt 00:00:33]} 7. Bd3 {[%clk 01:17:45]}
{[%emt 00:13:46]} Nc6 {[%clk 01:32:10]} {[%emt 00:00:37]} 8. Nge2 {[%clk
01:09:04]} {[%emt 00:09:10]} Bg7 {[%clk 01:29:56]} {[%emt 00:02:44]} 9. Be3
{[%clk 01:07:42]} {[%emt 00:01:52]} O-O {[%clk 01:28:50]} {[%emt 00:01:37]} 10.
a3 {[%clk 01:02:59]} {[%emt 00:05:13]} a5 {[%clk 01:26:24]} {[%emt 00:02:55]}
11. O-O {[%clk 01:01:45]} {[%emt 00:01:44]} e6 {[%clk 01:21:08]} {[%emt
00:05:47]} 12. Qd2 {[%clk 00:53:46]} {[%emt 00:08:29]} a4 {[%clk 01:15:52]}
{[%emt 00:05:46]} 13. c5 {[%clk 00:43:16]} {[%emt 00:11:00]} dxc5 {[%clk
01:15:39]} {[%emt 00:00:43]} 14. dxc5 {[%clk 00:43:29]} {[%emt 00:00:16]} Nd5
{[%clk 01:14:09]} {[%emt 00:02:01]} 15. Nxd5 {[%clk 00:41:44]} {[%emt
00:02:15]} Qxd5 {[%clk 01:13:36]} {[%emt 00:01:02]} 16. Nc3 {[%clk 00:39:50]}
{[%emt 00:02:24]} Qd8 {[%clk 01:13:37]} {[%emt 00:00:29]} 17. Rad1 {[%clk
00:37:35]} {[%emt 00:02:44]} Ne5 {[%clk 01:10:22]} {[%emt 00:03:46]} 18. Qc2
{[%clk 00:35:20]} {[%emt 00:02:44]} Nxd3 {[%clk 01:05:14]} {[%emt 00:05:39]} 19.
Rxd3 {[%clk 00:35:38]} {[%emt 00:00:12]} Qe8 {[%clk 01:05:33]} {[%emt
00:00:11]} 20. Rfd1 {[%clk 00:35:43]} {[%emt 00:00:21]} e5 {[%clk 00:56:45]}
{[%emt 00:09:22]} 21. Qd2 {[%clk 00:32:22]} {[%emt 00:03:49]} Bf5 {[%clk
00:46:35]} {[%emt 00:10:43]} 22. Rd6 {[%clk 00:31:53]} {[%emt 00:00:58]} e4
{[%clk 00:44:47]} {[%emt 00:02:18]} 23. Nd5 {[%clk 00:28:53]} {[%emt 00:03:29]}
Rc8 {[%clk 00:43:54]} {[%emt 00:01:24]} 24. Bh6 {[%clk 00:27:29]} {[%emt
00:01:53]} Kh8 {[%clk 00:44:06]} {[%emt 00:00:18]} 25. Bxg7+ {[%clk 00:27:31]}
{[%emt 00:00:29]} Kxg7 {[%clk 00:44:21]} {[%emt 00:00:15]} 26. Qd4+ {[%clk
00:27:44]} {[%emt 00:00:10]} 1-0

[Event "Polofinale MCR juniorek 2023"]
[Site "Czech Republic"]
[Date "2023.11.12"]
[Round "2.6"]
[White "Hosova, Sandra"]
[Black "Stavova, Helena"]
[Result "1-0"]
[TimeControl "90 min per 40 moves + 15 min + 30 sec / move from move 1"]
[WhiteFideId "397717"]
[BlackFideId "23714751"]
[WhiteElo "1730"]
[BlackElo "1425"]

1. d4 {[%clk 01:29:09]} {[%emt 00:01:50]} d5 {[%clk 01:30:31]} {[%emt
00:00:30]} 2. Nf3 {[%clk 01:29:21]} {[%emt 00:00:18]} Nf6 {[%clk 01:30:37]}
{[%emt 00:00:24]} 3. e3 {[%clk 01:29:25]} {[%emt 00:00:26]} e6 {[%clk
01:30:05]} {[%emt 00:01:02]} 4. Bd3 {[%clk 01:29:18]} {[%emt 00:00:37]} c5
{[%clk 01:29:10]} {[%emt 00:01:26]} 5. b3 {[%clk 01:28:44]} {[%emt 00:01:03]}
Nc6 {[%clk 01:28:33]} {[%emt 00:01:07]} 6. Bb2 {[%clk 01:28:20]} {[%emt
00:00:54]} Bd6 {[%clk 01:25:49]} {[%emt 00:03:13]} 7. Nbd2 {[%clk 01:27:30]}
{[%emt 00:01:21]} Qb6 {[%clk 01:21:24]} {[%emt 00:04:56]} 8. Rb1 {[%clk
01:16:20]} {[%emt 00:11:40]} Nb4 {[%clk 01:19:21]} {[%emt 00:02:33]} 9. Be2
{[%clk 01:16:34]} {[%emt 00:00:15]} O-O {[%clk 01:13:50]} {[%emt 00:06:01]} 10.
a3 {[%clk 01:04:33]} {[%emt 00:12:32]} Nc6 {[%clk 01:13:44]} {[%emt 00:00:36]}
11. Bd3 {[%clk 00:57:51]} {[%emt 00:07:12]} Qc7 {[%clk 01:07:28]} {[%emt
00:06:46]} 12. e4 {[%clk 00:41:01]} {[%emt 00:17:20]} e5 {[%clk 01:04:04]}
{[%emt 00:03:55]} 13. exd5 {[%clk 00:37:44]} {[%emt 00:03:47]} Nxd5 {[%clk
01:03:30]} {[%emt 00:01:03]} 14. dxc5 {[%clk 00:36:11]} {[%emt 00:02:03]} Bxc5
{[%clk 01:03:30]} {[%emt 00:00:30]} 15. Bxh7+ {[%clk 00:28:04]} {[%emt
00:08:37]} Kxh7 {[%clk 00:59:32]} {[%emt 00:04:28]} 16. Ne4 {[%clk 00:27:03]}
{[%emt 00:01:31]} Bxf2+ {[%clk 00:50:34]} {[%emt 00:09:28]} 17. Nxf2 {[%clk
00:25:58]} {[%emt 00:01:35]} Nf4 {[%clk 00:46:53]} {[%emt 00:04:11]} 18. O-O
{[%clk 00:24:53]} {[%emt 00:01:36]} Kg8 {[%clk 00:45:27]} {[%emt 00:01:56]} 19.
Qe1 {[%clk 00:18:25]} {[%emt 00:06:58]} Re8 {[%clk 00:42:45]} {[%emt 00:03:10]}
20. Ne4 {[%clk 00:16:08]} {[%emt 00:02:48]} Ng6 {[%clk 00:36:31]} {[%emt
00:06:43]} 21. Qe2 {[%clk 00:11:45]} {[%emt 00:04:53]} Bg4 {[%clk 00:32:22]}
{[%emt 00:04:39]} 22. Qc4 {[%clk 00:11:33]} {[%emt 00:00:43]} Be6 {[%clk
00:29:54]} {[%emt 00:02:58]} 23. Qc3 {[%clk 00:11:42]} {[%emt 00:00:21]} Nf4
{[%clk 00:25:17]} {[%emt 00:05:08]} 24. Kh1 {[%clk 00:11:33]} {[%emt 00:00:39]}
Nd5 {[%clk 00:23:04]} {[%emt 00:02:42]} 25. Qe1 {[%clk 00:10:44]} {[%emt
00:01:19]} f6 {[%clk 00:19:22]} {[%emt 00:04:12]} 26. Qg3 {[%clk 00:09:50]}
{[%emt 00:01:25]} Qe7 {[%clk 00:17:28]} {[%emt 00:02:23]} 27. Nh4 {[%clk
00:08:25]} {[%emt 00:01:54]} Nf4 {[%clk 00:16:42]} {[%emt 00:01:17]} 28. Bc1
{[%clk 00:06:55]} {[%emt 00:02:01]} Ne2 {[%clk 00:13:43]} {[%emt 00:03:28]} 29.
Qg6 {[%clk 00:07:04]} {[%emt 00:00:21]} Rf8 {[%clk 00:09:56]} {[%emt 00:04:18]}
30. Qh5 {[%clk 00:05:23]} {[%emt 00:02:11]} Nxc1 {[%clk 00:09:29]} {[%emt
00:00:57]} 31. Ng6 {[%clk 00:05:13]} {[%emt 00:00:41]} Qd7 {[%clk 00:07:59]}
{[%emt 00:01:59]} 32. Ng5 {[%clk 00:03:45]} {[%emt 00:01:59]} 1-0

[Event "Polofinale MCR juniorek 2023"]
[Site "Czech Republic"]
[Date "2023.11.12"]
[Round "2.7"]
[White "Jakubse, Tamae Severina"]
[Black "Reznickova, Sibyla"]
[Result "1-0"]
[TimeControl "90 min per 40 moves + 15 min + 30 sec / move from move 1"]
[WhiteFideId "23745975"]
[BlackFideId "398721"]
[WhiteElo "1679"]
[BlackElo "1413"]

1. e4 {[%clk 01:30:57]} {[%emt 00:00:02]} e5 {[%clk 01:30:43]} {[%emt
00:00:17]} 2. Nf3 {[%clk 01:31:11]} {[%emt 00:00:17]} Nc6 {[%clk 01:30:19]}
{[%emt 00:00:54]} 3. d4 {[%clk 01:31:33]} {[%emt 00:00:07]} exd4 {[%clk
01:29:52]} {[%emt 00:00:57]} 4. Nxd4 {[%clk 01:31:56]} {[%emt 00:00:07]} Bc5
{[%clk 01:29:27]} {[%emt 00:00:55]} 5. Be3 {[%clk 01:31:54]} {[%emt 00:00:31]}
Bb6 {[%clk 01:29:03]} {[%emt 00:00:55]} 6. Be2 {[%clk 01:30:43]} {[%emt
00:01:41]} Nf6 {[%clk 01:22:16]} {[%emt 00:07:17]} 7. Nxc6 {[%clk 01:24:30]}
{[%emt 00:06:43]} bxc6 {[%clk 01:21:27]} {[%emt 00:01:19]} 8. Bxb6 {[%clk
01:20:45]} {[%emt 00:04:16]} axb6 {[%clk 01:15:18]} {[%emt 00:06:39]} 9. Bf3
{[%clk 01:16:21]} {[%emt 00:04:53]} Ba6 {[%clk 01:08:39]} {[%emt 00:07:10]} 10.
Qd2 {[%clk 01:11:47]} {[%emt 00:05:04]} Qe7 {[%clk 01:00:12]} {[%emt 00:08:56]}
11. Nc3 {[%clk 01:09:44]} {[%emt 00:02:34]} O-O {[%clk 00:57:54]} {[%emt
00:02:49]} 12. O-O-O {[%clk 00:57:45]} {[%emt 00:12:27]} b5 {[%clk 00:53:23]}
{[%emt 00:05:02]} 13. a3 {[%clk 00:46:59]} {[%emt 00:11:17]} b4 {[%clk
00:49:53]} {[%emt 00:04:00]} 14. Nb1 {[%clk 00:44:36]} {[%emt 00:02:54]} bxa3
{[%clk 00:46:51]} {[%emt 00:03:32]} 15. Nxa3 {[%clk 00:44:48]} {[%emt
00:00:17]} Bb5 {[%clk 00:37:03]} {[%emt 00:10:17]} 16. Qe3 {[%clk 00:37:21]}
{[%emt 00:07:57]} Rfb8 {[%clk 00:29:54]} {[%emt 00:07:39]} 17. e5 {[%clk
00:34:17]} {[%emt 00:03:35]} Nd5 {[%clk 00:27:18]} {[%emt 00:03:05]} 18. Bxd5
{[%clk 00:33:13]} {[%emt 00:01:35]} cxd5 {[%clk 00:27:22]} {[%emt 00:00:26]} 19.
Rxd5 {[%clk 00:28:36]} {[%emt 00:05:07]} Bc6 {[%clk 00:24:06]} {[%emt
00:03:45]} 20. Rd3 {[%clk 00:26:22]} {[%emt 00:02:43]} Qe6 {[%clk 00:20:19]}
{[%emt 00:04:18]} 21. Kb1 {[%clk 00:21:44]} {[%emt 00:05:07]} Bb5 {[%clk
00:15:28]} {[%emt 00:05:21]} 22. Rb3 {[%clk 00:20:45]} {[%emt 00:01:26]} Ba4
{[%clk 00:13:01]} {[%emt 00:02:59]} 23. Rxb8+ {[%clk 00:19:21]} {[%emt
00:01:54]} Rxb8 {[%clk 00:13:22]} {[%emt 00:00:10]} 24. Qa7 {[%clk 00:18:26]}
{[%emt 00:01:25]} Qb6 {[%clk 00:12:42]} {[%emt 00:01:10]} 25. Qxb6 {[%clk
00:18:13]} {[%emt 00:00:43]} Rxb6 {[%clk 00:12:44]} {[%emt 00:00:27]} 26. Rd1
{[%clk 00:17:16]} {[%emt 00:01:26]} Rh6 {[%clk 00:12:16]} {[%emt 00:00:59]} 27.
h3 {[%clk 00:17:05]} {[%emt 00:00:41]} Bc6 {[%clk 00:12:09]} {[%emt 00:00:36]}
28. f3 {[%clk 00:16:35]} {[%emt 00:01:00]} Rg6 {[%clk 00:10:38]} {[%emt
00:02:01]} 29. Rd2 {[%clk 00:16:43]} {[%emt 00:00:22]} Re6 {[%clk 00:10:16]}
{[%emt 00:00:50]} 30. f4 {[%clk 00:14:35]} {[%emt 00:02:39]} Rg6 {[%clk
00:09:48]} {[%emt 00:00:56]} 31. g4 {[%clk 00:14:31]} {[%emt 00:00:35]} Rh6
{[%clk 00:09:34]} {[%emt 00:00:43]} 32. Rd3 {[%clk 00:13:46]} {[%emt 00:01:16]}
Kf8 {[%clk 00:09:48]} {[%emt 00:00:17]} 33. Rg3 {[%clk 00:13:13]} {[%emt
00:01:01]} Be4 {[%clk 00:08:13]} {[%emt 00:02:07]} 34. Nb5 {[%clk 00:13:03]}
{[%emt 00:00:40]} c6 {[%clk 00:06:50]} {[%emt 00:01:52]} 35. Nd6 {[%clk
00:13:09]} {[%emt 00:00:24]} Bd5 {[%clk 00:06:59]} {[%emt 00:00:20]} 36. Ra3
{[%clk 00:10:56]} {[%emt 00:02:44]} c5 {[%clk 00:04:23]} {[%emt 00:03:06]} 37.
Rd3 {[%clk 00:08:46]} {[%emt 00:02:39]} Bc6 {[%clk 00:03:28]} {[%emt 00:01:27]}
38. Rb3 {[%clk 00:08:19]} {[%emt 00:00:56]} Ke7 {[%clk 00:01:41]} {[%emt
00:02:17]} 39. Nf5+ {[%clk 00:06:37]} {[%emt 00:02:13]} 1-0